[Event "Championnat d'Europe de Blitz"]
[Date "2024.12.09"]
[White "Domingo Nunez, Ruben"]
[Black "Beerdsen, Thomas"]
[WhiteElo "2409"]
[BlackElo "2502"]
[Round "7.19"]
[Result "0-1"]
[TimeControl "180+2"]

1. Nf3 {[%emt 00:00:02] [%clk 00:03:02]} d5 {[%emt 00:00:03] [%clk 00:03:02]} 2.
g3 {[%emt 00:00:01] [%clk 00:03:02]} Nc6 {[%clk 00:03:03]} 3. d4 {[%emt
00:00:02] [%clk 00:03:03]} Nf6 {[%emt 00:00:02] [%clk 00:03:02]} 4. Bg2 {[%emt
00:00:02] [%clk 00:03:04]} g6 {[%emt 00:00:01] [%clk 00:03:02]} 5. Nbd2 {[%emt
00:00:25] [%clk 00:02:41]} Bg7 {[%emt 00:00:14] [%clk 00:02:51]} 6. b3 {[%emt
00:00:30] [%clk 00:02:13]} a5 {[%emt 00:00:03] [%clk 00:02:50]} 7. a3 {[%emt
00:00:02] [%clk 00:02:13]} Ne4 {[%emt 00:00:06] [%clk 00:02:45]} 8. Bb2 {[%emt
00:00:01] [%clk 00:02:14]} Bf5 {[%emt 00:00:06] [%clk 00:02:42]} 9. e3 {[%emt
00:00:11] [%clk 00:02:04]} O-O {[%emt 00:00:06] [%clk 00:02:37]} 10. Nh4 {[%emt
00:00:08] [%clk 00:01:59]} Nxd2 {[%emt 00:00:22] [%clk 00:02:17]} 11. Qxd2
{[%emt 00:00:01] [%clk 00:02:00]} Be4 {[%emt 00:00:08] [%clk 00:02:12]} 12. f3
{[%emt 00:00:16] [%clk 00:01:45]} Bf5 {[%emt 00:00:02] [%clk 00:02:12]} 13. Nxf5
{[%emt 00:00:01] [%clk 00:01:46]} gxf5 {[%clk 00:02:13]} 14. f4 {[%emt 00:00:07]
[%clk 00:01:42]} e6 {[%emt 00:00:06] [%clk 00:02:08]} 15. Bf3 {[%emt 00:00:22]
[%clk 00:01:23]} Ne7 {[%emt 00:00:06] [%clk 00:02:03]} 16. Bc3 {[%emt 00:00:20]
[%clk 00:01:06]} b6 {[%emt 00:00:10] [%clk 00:01:54]} 17. O-O {[%emt 00:00:04]
[%clk 00:01:04]} Nc8 {[%emt 00:00:03] [%clk 00:01:53]} 18. b4 {[%emt 00:00:21]
[%clk 00:00:46]} Nd6 {[%emt 00:00:07] [%clk 00:01:48]} 19. bxa5 {[%emt 00:00:03]
[%clk 00:00:45]} bxa5 {[%emt 00:00:02] [%clk 00:01:47]} 20. Rfb1 {[%emt
00:00:03] [%clk 00:00:45]} Nc4 {[%emt 00:00:11] [%clk 00:01:37]} 21. Qc1 {[%emt
00:00:04] [%clk 00:00:43]} c5 {[%emt 00:00:03] [%clk 00:01:37]} 22. Be2 {[%emt
00:00:23] [%clk 00:00:21]} cxd4 {[%emt 00:00:03] [%clk 00:01:36]} 23. Bxd4
{[%emt 00:00:02] [%clk 00:00:21]} Bxd4 {[%emt 00:00:03] [%clk 00:01:35]} 24.
exd4 {[%clk 00:00:22]} Rc8 {[%emt 00:00:02] [%clk 00:01:35]} 25. Rb5 {[%emt
00:00:12] [%clk 00:00:13]} Qf6 {[%emt 00:00:02] [%clk 00:01:34]} 26. c3 {[%emt
00:00:01] [%clk 00:00:14]} Nd6 {[%emt 00:00:04] [%clk 00:01:32]} 27. Rb2 {[%emt
00:00:09] [%clk 00:00:08]} Ne4 {[%emt 00:00:01] [%clk 00:01:33]} 28. Rc2 {[%clk
00:00:09]} Nxc3 {[%emt 00:00:03] [%clk 00:01:32]} 29. Ba6 {[%emt 00:00:05] [%clk
00:00:06]} Rc6 {[%emt 00:00:12] [%clk 00:01:22]} 30. Kg2 {[%emt 00:00:03] [%clk
00:00:05]} Qxd4 {[%emt 00:00:10] [%clk 00:01:13]} 31. Kh3 {[%clk 00:00:07]} Rc5
{[%emt 00:00:12] [%clk 00:01:03]} 32. Qb2 {[%emt 00:00:04] [%clk 00:00:05]} Qf6
{[%emt 00:00:08] [%clk 00:00:56]} 33. Rac1 {[%emt 00:00:03]} d4 {[%emt 00:00:01]
[%clk 00:00:56]} 34. Qb6 {[%clk 00:00:07]} Rd5 {[%emt 00:00:06] [%clk 00:00:51]}
35. Bc4 {[%emt 00:00:02] [%clk 00:00:08]} Rdd8 {[%emt 00:00:05] [%clk 00:00:47]}
36. Qxa5 {[%emt 00:00:15]} Ra8 {[%clk 00:00:35]} 37. Qb4 {[%emt 00:00:02]} Rfb8
{[%clk 00:00:35]} 38. Qd6 {[%emt 00:00:01] [%clk 00:00:13]} Rd8 {[%emt 00:00:01]
[%clk 00:00:35]} 39. Qb4 {[%emt 00:00:02] [%clk 00:00:14]} Rab8 {[%emt 00:00:02]
[%clk 00:00:35]} 40. Qa5 {[%clk 00:00:15]} Ne4 {[%emt 00:00:10] [%clk 00:00:27]}
41. Bd3 {[%emt 00:00:06] [%clk 00:00:11]} Rb3 {[%emt 00:00:02] [%clk 00:00:27]}
42. Qa6 {[%emt 00:00:03] [%clk 00:00:10]} Kg7 {[%emt 00:00:05] [%clk 00:00:23]}
43. Re1 {[%emt 00:00:03] [%clk 00:00:10]} Rc3 {[%emt 00:00:09] [%clk 00:00:15]}
44. Rce2 {[%emt 00:00:02] [%clk 00:00:10]} Nc5 {[%emt 00:00:04] [%clk 00:00:13]}
45. Qa7 {[%emt 00:00:06] [%clk 00:00:07]} Nxd3 {[%emt 00:00:01] [%clk 00:00:13]}
46. Rxe6 {[%emt 00:00:01] [%clk 00:00:08]} Nxf4# {[%emt 00:00:01] [%clk
00:00:14]} 0-1

[Site "Europe Echecs"]

[Event "Championnat d'Europe de Blitz"]
[Date "2024.12.09"]
[White "Dvirnyy, Danyyil"]
[Black "Stanojoski, Zvonko"]
[WhiteElo "2491"]
[BlackElo "2401"]
[Round "7.20"]
[Result "1-0"]
[TimeControl "180+2"]

1. e4 {[%emt 00:00:02] [%clk 00:03:01]} c5 {[%emt 00:00:05] [%clk 00:03:00]} 2.
Nf3 {[%emt 00:00:02] [%clk 00:03:01]} d6 {[%clk 00:03:01]} 3. d4 {[%emt
00:00:02] [%clk 00:03:02]} cxd4 {[%emt 00:00:01] [%clk 00:03:02]} 4. Nxd4 {[%clk
00:03:03]} Nf6 {[%emt 00:00:02] [%clk 00:03:03]} 5. Nc3 {[%emt 00:00:01] [%clk
00:03:03]} g6 {[%emt 00:00:03] [%clk 00:03:02]} 6. Be3 {[%emt 00:00:14] [%clk
00:02:51]} Bg7 {[%emt 00:00:02] [%clk 00:03:03]} 7. f3 {[%emt 00:00:01] [%clk
00:02:52]} Nc6 {[%emt 00:00:04] [%clk 00:03:01]} 8. Qd2 {[%emt 00:00:01] [%clk
00:02:53]} O-O {[%emt 00:00:06] [%clk 00:02:57]} 9. Bc4 {[%emt 00:00:02] [%clk
00:02:53]} Bd7 {[%emt 00:00:12] [%clk 00:02:47]} 10. O-O-O {[%emt 00:00:02]
[%clk 00:02:52]} Rc8 {[%emt 00:00:04] [%clk 00:02:45]} 11. Bb3 {[%emt 00:00:06]
[%clk 00:02:48]} Ne5 {[%emt 00:00:01] [%clk 00:02:46]} 12. Kb1 {[%emt 00:00:02]
[%clk 00:02:48]} Nc4 {[%emt 00:00:18] [%clk 00:02:31]} 13. Bxc4 {[%emt 00:00:02]
[%clk 00:02:49]} Rxc4 {[%emt 00:00:01] [%clk 00:02:32]} 14. g4 {[%emt 00:00:04]
[%clk 00:02:46]} Qa5 {[%emt 00:00:33] [%clk 00:02:00]} 15. Nb3 {[%emt 00:00:02]
[%clk 00:02:46]} Qa6 {[%emt 00:00:23] [%clk 00:01:40]} 16. e5 {[%emt 00:00:03]
[%clk 00:02:45]} Nxg4 {[%emt 00:00:30] [%clk 00:01:12]} 17. fxg4 {[%emt
00:00:04] [%clk 00:02:43]} Bxg4 {[%emt 00:00:01] [%clk 00:01:13]} 18. Rdf1
{[%emt 00:00:42] [%clk 00:02:03]} dxe5 {[%emt 00:00:06] [%clk 00:01:10]} 19. h4
{[%emt 00:00:08] [%clk 00:01:56]} h5 {[%emt 00:00:04] [%clk 00:01:08]} 20. Nd5
{[%emt 00:00:14] [%clk 00:01:44]} Qd6 {[%emt 00:00:11] [%clk 00:00:59]} 21. Bg5
{[%emt 00:00:12] [%clk 00:01:34]} f6 {[%emt 00:00:08] [%clk 00:00:54]} 22. Nxf6+
{[%emt 00:00:07] [%clk 00:01:28]} Bxf6 {[%emt 00:00:03] [%clk 00:00:53]} 23.
Qxd6 {[%emt 00:00:05] [%clk 00:01:25]} exd6 {[%emt 00:00:03] [%clk 00:00:52]}
24. Rxf6 {[%emt 00:00:04] [%clk 00:01:23]} Rxf6 {[%emt 00:00:02] [%clk
00:00:52]} 25. Bxf6 {[%emt 00:00:01] [%clk 00:01:24]} Bf5 {[%emt 00:00:02] [%clk
00:00:51]} 26. Rc1 {[%emt 00:00:05] [%clk 00:01:20]} Kf7 {[%emt 00:00:01] [%clk
00:00:52]} 27. Bg5 {[%clk 00:01:21]} Ke6 {[%emt 00:00:19] [%clk 00:00:35]} 28.
Nd2 {[%emt 00:00:01] [%clk 00:01:22]} Rg4 {[%emt 00:00:08] [%clk 00:00:28]} 29.
Re1 {[%emt 00:00:03] [%clk 00:01:22]} Rg2 {[%emt 00:00:03] [%clk 00:00:27]} 30.
b4 {[%emt 00:00:16] [%clk 00:01:09]} d5 {[%emt 00:00:02] [%clk 00:00:27]} 31.
Kb2 {[%emt 00:00:03] [%clk 00:01:07]} Rg4 {[%emt 00:00:17] [%clk 00:00:13]} 32.
Kb3 {[%emt 00:00:03] [%clk 00:01:06]} d4 {[%emt 00:00:01] [%clk 00:00:14]} 33.
c3 {[%emt 00:00:37] [%clk 00:00:32]} Rg3 {[%emt 00:00:02] [%clk 00:00:13]} 34.
Rc1 {[%emt 00:00:15] [%clk 00:00:18]} Kd5 {[%emt 00:00:02] [%clk 00:00:14]} 35.
Kb2 {[%clk 00:00:19]} e4 {[%emt 00:00:08] [%clk 00:00:08]} 36. cxd4 {[%emt
00:00:02] [%clk 00:00:19]} e3 {[%emt 00:00:03] [%clk 00:00:06]} 37. Nb3 {[%emt
00:00:09] [%clk 00:00:12]} Rg2+ {[%emt 00:00:03] [%clk 00:00:06]} 38. Kc3 {[%emt
00:00:02] [%clk 00:00:12]} e2 {[%emt 00:00:05] [%clk 00:00:04]} 39. Re1 {[%emt
00:00:04] [%clk 00:00:09]} Bg4 {[%emt 00:00:01] [%clk 00:00:04]} 40. Nd2 {[%emt
00:00:03] [%clk 00:00:08]} Rg3+ {[%clk 00:00:06]} 41. Kb2 {[%emt 00:00:01] [%clk
00:00:09]} Rd3 {[%clk 00:00:07]} 42. Nb1 {[%emt 00:00:03] [%clk 00:00:09]} Rxd4
{[%emt 00:00:01] [%clk 00:00:07]} 43. Nc3+ {[%emt 00:00:01] [%clk 00:00:10]} Kc4
{[%clk 00:00:08]} 44. Nxe2 {[%emt 00:00:01] [%clk 00:00:10]} Re4 {[%clk
00:00:10]} 45. Rc1+ {[%emt 00:00:02] [%clk 00:00:11]} Kxb4 {[%clk 00:00:11]} 46.
Bd2+ {[%emt 00:00:04] [%clk 00:00:10]} 1-0

[Site "Europe Echecs"]

[Event "Championnat d'Europe de Blitz"]
[Date "2024.12.09"]
[White "Hamitevici, Vladimir"]
[Black "Subelj, Jan"]
[WhiteElo "2423"]
[BlackElo "2526"]
[Round "7.21"]
[Result "1/2-1/2"]
[TimeControl "180+2"]

1. Nf3 {[%clk 00:03:03]} d5 {[%emt 00:00:02] [%clk 00:03:03]} 2. c4 {[%emt
00:00:02] [%clk 00:03:03]} d4 {[%emt 00:00:03] [%clk 00:03:03]} 3. b4 {[%clk
00:03:03]} c5 {[%clk 00:03:04]} 4. b5 {[%emt 00:00:10] [%clk 00:02:56]} g6
{[%emt 00:00:06] [%clk 00:02:59]} 5. g3 {[%emt 00:00:03] [%clk 00:02:55]} Bg7
{[%emt 00:00:01] [%clk 00:03:00]} 6. d3 {[%emt 00:00:01] [%clk 00:02:56]} Nf6
{[%emt 00:00:02] [%clk 00:03:01]} 7. Bg2 {[%emt 00:00:02] [%clk 00:02:56]} O-O
{[%emt 00:00:02] [%clk 00:03:01]} 8. O-O {[%emt 00:00:02] [%clk 00:02:56]} Re8
{[%emt 00:00:05] [%clk 00:02:58]} 9. a4 {[%emt 00:00:05] [%clk 00:02:52]} e5
{[%emt 00:00:03] [%clk 00:02:58]} 10. e4 {[%emt 00:00:17] [%clk 00:02:37]} dxe3
{[%emt 00:00:17] [%clk 00:02:43]} 11. Bxe3 {[%emt 00:00:01] [%clk 00:02:37]} e4
{[%emt 00:00:02] [%clk 00:02:43]} 12. dxe4 {[%emt 00:00:06] [%clk 00:02:33]}
Nxe4 {[%emt 00:00:02] [%clk 00:02:44]} 13. Qxd8 {[%emt 00:00:47] [%clk
00:01:48]} Rxd8 {[%clk 00:02:45]} 14. Ra3 {[%emt 00:00:04] [%clk 00:01:46]} Nd7
{[%emt 00:00:02] [%clk 00:02:44]} 15. a5 {[%emt 00:00:08] [%clk 00:01:41]} Ndf6
{[%emt 00:00:13] [%clk 00:02:33]} 16. Nfd2 {[%emt 00:00:13] [%clk 00:01:29]} Bf5
{[%emt 00:00:01] [%clk 00:02:34]} 17. Nxe4 {[%emt 00:00:38] [%clk 00:00:54]}
Bxe4 {[%emt 00:00:01] [%clk 00:02:35]} 18. Bxc5 {[%emt 00:00:13] [%clk
00:00:43]} Rdc8 {[%emt 00:00:01] [%clk 00:02:36]} 19. Be3 {[%emt 00:00:19] [%clk
00:00:25]} Bxg2 {[%emt 00:00:02] [%clk 00:02:36]} 20. Kxg2 {[%clk 00:00:26]}
Rxc4 {[%emt 00:00:02] [%clk 00:02:37]} 21. Nd2 {[%emt 00:00:01] [%clk 00:00:26]}
Rb4 {[%emt 00:00:01] [%clk 00:02:38]} 22. Rb1 {[%emt 00:00:05] [%clk 00:00:24]}
Rxb1 {[%emt 00:00:01] [%clk 00:02:38]} 23. Nxb1 {[%clk 00:00:25]} Nd5 {[%emt
00:00:01] [%clk 00:02:39]} 24. Rd3 {[%emt 00:00:07] [%clk 00:00:20]} Rd8 {[%emt
00:00:07] [%clk 00:02:35]} 25. Kf3 {[%emt 00:00:04] [%clk 00:00:18]} a6 {[%emt
00:00:04] [%clk 00:02:33]} 26. bxa6 {[%emt 00:00:08] [%clk 00:00:12]} bxa6
{[%emt 00:00:02] [%clk 00:02:34]} 27. Nd2 {[%emt 00:00:02] [%clk 00:00:10]} Bf6
{[%emt 00:00:04] [%clk 00:02:32]} 28. Nb3 {[%emt 00:00:05] [%clk 00:00:07]} Nb4
{[%emt 00:00:24] [%clk 00:02:10]} 29. Rxd8+ {[%emt 00:00:03] [%clk 00:00:06]}
Bxd8 {[%clk 00:02:11]} 30. Bb6 {[%clk 00:00:08]} Bf6 {[%emt 00:00:01] [%clk
00:02:12]} 31. Bc5 {[%emt 00:00:04] [%clk 00:00:06]} Nc6 {[%clk 00:02:13]} 32.
Bb6 {[%emt 00:00:01] [%clk 00:00:07]} Bc3 {[%emt 00:00:01] [%clk 00:02:14]} 33.
Nc5 {[%emt 00:00:03] [%clk 00:00:06]} Nxa5 {[%emt 00:00:05] [%clk 00:02:11]} 34.
Bxa5 {[%emt 00:00:02] [%clk 00:00:05]} Bxa5 {[%emt 00:00:01] [%clk 00:02:12]}
35. Nxa6 {[%clk 00:00:07]} Bb6 {[%clk 00:02:13]} 36. Nb4 {[%emt 00:00:01] [%clk
00:00:08]} 1/2-1/2

[Site "Europe Echecs"]

[Event "Championnat d'Europe de Blitz"]
[Date "2024.12.09"]
[White "Kuzubov, Yuriy"]
[Black "Narva, Mai"]
[WhiteElo "2595"]
[BlackElo "2413"]
[Round "7.22"]
[Result "1/2-1/2"]
[TimeControl "180+2"]

1. c4 {[%clk 00:03:03]} Nf6 {[%emt 00:00:05] [%clk 00:03:01]} 2. Nc3 {[%clk
00:03:04]} e6 {[%emt 00:00:06] [%clk 00:02:57]} 3. Nf3 {[%emt 00:00:12] [%clk
00:02:54]} d5 {[%emt 00:00:02] [%clk 00:02:56]} 4. d4 {[%emt 00:00:01] [%clk
00:02:55]} Be7 {[%emt 00:00:05] [%clk 00:02:54]} 5. cxd5 {[%emt 00:00:03] [%clk
00:02:53]} exd5 {[%emt 00:00:03] [%clk 00:02:54]} 6. Bf4 {[%emt 00:00:02] [%clk
00:02:53]} c6 {[%emt 00:00:03] [%clk 00:02:52]} 7. e3 {[%emt 00:00:02] [%clk
00:02:54]} Nh5 {[%emt 00:00:08] [%clk 00:02:46]} 8. Qc2 {[%emt 00:00:05] [%clk
00:02:51]} Nxf4 {[%emt 00:00:03] [%clk 00:02:45]} 9. exf4 {[%emt 00:00:01] [%clk
00:02:52]} Bd6 {[%emt 00:00:03] [%clk 00:02:44]} 10. g3 {[%emt 00:00:07] [%clk
00:02:46]} Bg4 {[%emt 00:00:04] [%clk 00:02:42]} 11. Ne5 {[%emt 00:00:13] [%clk
00:02:35]} Qe7 {[%emt 00:00:02] [%clk 00:02:42]} 12. Be2 {[%emt 00:00:03] [%clk
00:02:35]} Bxe2 {[%emt 00:00:03] [%clk 00:02:41]} 13. Nxe2 {[%emt 00:00:02]
[%clk 00:02:34]} f6 {[%emt 00:00:02] [%clk 00:02:41]} 14. Ng4 {[%emt 00:00:13]
[%clk 00:02:23]} O-O {[%emt 00:00:03] [%clk 00:02:40]} 15. Ne3 {[%emt 00:00:07]
[%clk 00:02:19]} Re8 {[%emt 00:00:09] [%clk 00:02:33]} 16. O-O-O {[%emt
00:00:29] [%clk 00:01:51]} Na6 {[%emt 00:00:03] [%clk 00:02:32]} 17. a3 {[%emt
00:00:16] [%clk 00:01:38]} Qe4 {[%emt 00:00:10] [%clk 00:02:24]} 18. Qxe4 {[%emt
00:00:06] [%clk 00:01:34]} Rxe4 {[%emt 00:00:03] [%clk 00:02:23]} 19. Nc3 {[%emt
00:00:13] [%clk 00:01:23]} Ree8 {[%emt 00:00:04] [%clk 00:02:21]} 20. Rhe1
{[%emt 00:00:06] [%clk 00:01:19]} b5 {[%emt 00:00:21] [%clk 00:02:01]} 21. Na2
{[%emt 00:00:13] [%clk 00:01:09]} Nc7 {[%emt 00:00:36] [%clk 00:01:27]} 22. Kb1
{[%emt 00:00:07] [%clk 00:01:04]} a5 {[%emt 00:00:13] [%clk 00:01:16]} 23. Rc1
{[%emt 00:00:08] [%clk 00:00:58]} Ra6 {[%emt 00:00:02] [%clk 00:01:15]} 24. Nf5
{[%emt 00:00:05] [%clk 00:00:55]} Bf8 {[%emt 00:00:12] [%clk 00:01:05]} 25. Rxe8
{[%emt 00:00:11] [%clk 00:00:47]} Nxe8 {[%emt 00:00:01] [%clk 00:01:06]} 26. Rc2
{[%emt 00:00:07] [%clk 00:00:42]} g6 {[%emt 00:00:14] [%clk 00:00:54]} 27. Ne3
{[%emt 00:00:03] [%clk 00:00:40]} Nd6 {[%emt 00:00:16] [%clk 00:00:41]} 28. Nc1
{[%emt 00:00:02] [%clk 00:00:40]} Nc4 {[%emt 00:00:10] [%clk 00:00:34]} 29. Re2
{[%emt 00:00:11] [%clk 00:00:30]} Kf7 {[%emt 00:00:06] [%clk 00:00:30]} 30. Nd3
{[%emt 00:00:06] [%clk 00:00:26]} Ra8 {[%emt 00:00:05] [%clk 00:00:27]} 31. f5
{[%emt 00:00:05] [%clk 00:00:23]} Re8 {[%emt 00:00:04] [%clk 00:00:25]} 32.
fxg6+ {[%emt 00:00:03] [%clk 00:00:22]} hxg6 {[%emt 00:00:02] [%clk 00:00:25]}
33. Re1 {[%emt 00:00:07] [%clk 00:00:17]} Nd2+ {[%emt 00:00:06] [%clk 00:00:21]}
34. Ka2 {[%emt 00:00:08] [%clk 00:00:10]} Nf3 {[%emt 00:00:02] [%clk 00:00:22]}
35. Rd1 {[%emt 00:00:02] [%clk 00:00:10]} Nxd4 {[%emt 00:00:04] [%clk 00:00:20]}
36. Nf4 {[%emt 00:00:02] [%clk 00:00:10]} Bc5 {[%emt 00:00:09] [%clk 00:00:13]}
37. Rc1 {[%emt 00:00:05] [%clk 00:00:07]} Ba7 {[%emt 00:00:02] [%clk 00:00:13]}
38. h4 {[%emt 00:00:01] [%clk 00:00:07]} g5 {[%emt 00:00:04] [%clk 00:00:12]}
39. hxg5 {[%emt 00:00:02] [%clk 00:00:07]} fxg5 {[%emt 00:00:01] [%clk
00:00:13]} 40. Nd3 {[%emt 00:00:02] [%clk 00:00:07]} Kg6 {[%emt 00:00:08] [%clk
00:00:07]} 41. Rh1 {[%emt 00:00:04] [%clk 00:00:05]} Rf8 {[%emt 00:00:03] [%clk
00:00:06]} 42. Ne5+ {[%emt 00:00:02] [%clk 00:00:05]} Kg7 {[%emt 00:00:02] [%clk
00:00:06]} 43. N3g4 {[%emt 00:00:02] [%clk 00:00:04]} Bb8 {[%emt 00:00:04] [%clk
00:00:05]} 44. Nd7 {[%emt 00:00:02] [%clk 00:00:04]} Rd8 {[%emt 00:00:01] [%clk
00:00:06]} 45. Ndf6 {[%emt 00:00:02] [%clk 00:00:04]} Rf8 {[%emt 00:00:03] [%clk
00:00:05]} 46. Rh7+ {[%emt 00:00:02] [%clk 00:00:03]} Kg6 {[%emt 00:00:02] [%clk
00:00:06]} 47. Rb7 {[%emt 00:00:01] [%clk 00:00:04]} Rxf6 {[%emt 00:00:03] [%clk
00:00:04]} 48. Nxf6 {[%emt 00:00:01] [%clk 00:00:05]} Kxf6 {[%clk 00:00:05]} 49.
Rxb8 {[%emt 00:00:02] [%clk 00:00:06]} c5 {[%clk 00:00:06]} 50. Kb1 {[%emt
00:00:02] [%clk 00:00:05]} c4 {[%emt 00:00:02] [%clk 00:00:07]} 51. Kc1 {[%emt
00:00:02] [%clk 00:00:05]} Ke5 {[%emt 00:00:02] [%clk 00:00:07]} 52. Re8+ {[%emt
00:00:01] [%clk 00:00:06]} Kf5 {[%clk 00:00:08]} 53. Kd2 {[%emt 00:00:03] [%clk
00:00:05]} b4 {[%emt 00:00:01] [%clk 00:00:08]} 54. axb4 {[%emt 00:00:02] [%clk
00:00:06]} axb4 {[%clk 00:00:09]} 55. Rb8 {[%emt 00:00:02] [%clk 00:00:06]} b3
{[%emt 00:00:04] [%clk 00:00:07]} 56. Rd8 {[%emt 00:00:02] [%clk 00:00:06]} Ke5
{[%clk 00:00:07]} 57. Rg8 {[%emt 00:00:04] [%clk 00:00:04]} Ke4 {[%emt 00:00:03]
[%clk 00:00:07]} 58. Kc3 {[%emt 00:00:03] [%clk 00:00:03]} Ne2+ {[%emt 00:00:03]
[%clk 00:00:06]} 59. Kd2 {[%emt 00:00:01] [%clk 00:00:04]} Nd4 {[%emt 00:00:03]
[%clk 00:00:05]} 60. Re8+ {[%clk 00:00:05]} Kf5 {[%emt 00:00:03] [%clk
00:00:05]} 61. Rf8+ {[%clk 00:00:06]} Ke5 {[%clk 00:00:06]} 62. f4+ {[%emt
00:00:02] [%clk 00:00:06]} gxf4 {[%clk 00:00:06]} 63. Rxf4 {[%emt 00:00:02]
[%clk 00:00:06]} Nf5 {[%emt 00:00:03] [%clk 00:00:06]} 64. Rg4 {[%emt 00:00:02]
[%clk 00:00:06]} d4 {[%emt 00:00:02] [%clk 00:00:06]} 65. Rg8 {[%emt 00:00:01]
[%clk 00:00:07]} Nd6 {[%emt 00:00:01] [%clk 00:00:07]} 66. g4 {[%emt 00:00:03]
[%clk 00:00:06]} Ne4+ {[%clk 00:00:08]} 67. Kc1 {[%emt 00:00:01] [%clk
00:00:07]} c3 {[%emt 00:00:02] [%clk 00:00:09]} 68. Rb8 {[%emt 00:00:02] [%clk
00:00:07]} Nc5 {[%emt 00:00:07] [%clk 00:00:04]} 69. bxc3 {[%emt 00:00:05] [%clk
00:00:04]} dxc3 {[%clk 00:00:05]} 70. Rxb3 {[%emt 00:00:03] [%clk 00:00:03]}
Nxb3+ {[%clk 00:00:06]} 71. Kc2 {[%clk 00:00:05]} Nd4+ {[%emt 00:00:03] [%clk
00:00:05]} 72. Kxc3 {[%clk 00:00:06]} Nf3 {[%emt 00:00:07] [%clk 00:00:06]}
1/2-1/2

[Site "Europe Echecs"]